fUST/lending_fUST_20240227
["ID","MTS","AMOUNT","RATE_DAILY","PERIOD"]
[315398800,1709011840943,-550.41,0.00019451,2]
[315398801,1709011841046,-500.0,0.00019451,2]
[315398802,1709011841056,-500.0,0.00019451,2]
[315398803,1709011841065,-984.2,0.00019452,2]
[315398804,1709011841075,-500.0,0.00019452,2]
[315398805,1709011841084,-500.0,0.00019452,2]
[315398806,1709011841094,-500.0,0.00019452,2]
[315398807,1709011841104,-500.0,0.00019452,2]
[315398808,1709011841114,-503.95237384,0.00019452,2]
[315398809,1709011841125,-476.05935812,0.00019452,2]
[315398810,1709011841136,-500.0,0.00019452,2]
[315398811,1709011841145,-501.83788764,0.00019452,2]
[315398812,1709011841154,-500.0,0.00019452,2]
[315398813,1709011841163,-502.97392599,0.00019452,2]
[315398814,1709011841171,-500.0,0.00019452,2]
[315398815,1709011841180,-1139.6,0.00019452,2]
[315398816,1709011841190,-500.0,0.00019452,2]
[315398817,1709011841199,-500.0,0.00019452,2]
[315398818,1709011841208,-501.95643743,0.00019452,2]
[315398819,1709011841217,-500.0,0.00019452,2]
[315398820,1709011841226,-501.378692,0.00019452,2]
[315398821,1709011841237,-500.0,0.00019452,2]
[315398822,1709011841246,-500.0,0.00019452,2]
[315398823,1709011841255,-500.0,0.00019452,2]
[315398824,1709011841264,-500.0,0.00019452,2]
[315398825,1709011841274,-503.26423189,0.00019452,2]
[315398826,1709011841283,-503.49687487,0.00019452,2]
[315398827,1709011841291,-500.0,0.00019452,2]
[315398828,1709011841300,-500.0,0.00019452,2]
[315398829,1709011841309,-500.0,0.00019452,2]
[315398830,1709011841318,-500.0,0.00019452,2]
[315398831,1709011841327,-500.0,0.00019452,2]
[315398832,1709011841337,-500.0,0.00019452,2]
[315398833,1709011841346,-500.0,0.00019452,2]
[315398834,1709011841355,-500.0,0.00019452,2]
[315398835,1709011841363,-500.0,0.00019452,2]
[315398836,1709011841374,-500.0,0.00019452,2]
[315398837,1709011841384,-500.0,0.00019452,2]
[315398838,1709011841394,-500.0,0.00019452,2]
[315398839,1709011841403,-410.10016763,0.00019452,2]
[315398840,1709011841411,-503.26575767,0.00019452,2]
[315398841,1709011841421,-282.6196593,0.00019452,2]
[315398842,1709011841430,-500.0,0.00019452,2]
[315398843,1709011841439,-500.0,0.00019452,2]
[315398844,1709011841449,-479.74109791,0.00019452,2]
[315398845,1709011841458,-523.18221423,0.00019452,2]
[315398846,1709011841468,-500.0,0.00019452,2]
[315398847,1709011841477,-612.43,0.00019452,2]
[315398848,1709011841487,-500.0,0.00019452,2]
[315398849,1709011841496,-500.0,0.00019452,2]
[315398850,1709011841505,-500.0,0.00019452,2]
[315398851,1709011841514,-500.0,0.00019452,2]
[315398852,1709011841523,-1105.9,0.00019452,2]
[315398853,1709011841532,-292.53384056,0.00019452,2]
[315398854,1709011841542,-262.021544,0.00019452,2]
[315398855,1709011841555,-500.0,0.00019452,2]
[315398856,1709011841563,-659.62,0.00019452,2]
[315398857,1709011841573,-500.0,0.00019452,2]
[315398858,1709011841583,-500.0,0.00019452,2]
[315398859,1709011841592,-500.0,0.00019452,2]
[315398860,1709011841602,-2750.49,0.00019452,2]
[315398861,1709011841611,-1120.73,0.00019452,2]
[315398862,1709011841621,-502.13809935,0.00019452,2]
[315398863,1709011841632,-331.17941528,0.00019452,2]
[315398864,1709011841643,-1778.14,0.00019452,2]
[315398865,1709011841652,-500.0,0.00019452,2]
[315398866,1709011841661,-500.0,0.00019452,2]
[315398867,1709011841671,-500.0,0.00019452,2]
[315398868,1709011841680,-500.0,0.00019452,2]
[315398869,1709011841689,-1589.52,0.00019452,2]
[315398870,1709011841698,-500.0,0.00019452,2]
[315398871,1709011841707,-500.0,0.00019452,2]
[315398872,1709011841717,-500.74212623,0.00019452,2]
[315398873,1709011841727,-500.0,0.00019452,2]
[315398874,1709011841736,-500.0,0.00019452,2]
[315398875,1709011841745,-500.0,0.00019452,2]
[315398876,1709011841754,-13854.33,0.00019452,2]
[315398877,1709011841763,-500.0,0.00019452,2]
[315398878,1709011841772,-1369.18,0.00019452,2]
[315398879,1709011841781,-500.0,0.00019452,2]
[315398880,1709011841790,-500.0,0.00019452,2]
[315398881,1709011841800,-500.0,0.00019452,2]
[315398882,1709011841809,-500.0,0.00019452,2]
[315398883,1709011841818,-500.0,0.00019452,2]
[315398884,1709011841828,-500.0,0.00019452,2]
[315398885,1709011841837,-211.14111785,0.00019452,2]
[315398886,1709011841847,-588.85,0.00019452,2]
[315398887,1709011841856,-632.27431855,0.00019452,2]
[315398888,1709011841865,-673.52,0.00019452,2]
[315398889,1709011841874,-500.0,0.00019452,2]
[315398890,1709011841883,-1102.6,0.00019452,2]
[315398891,1709011841893,-7587.69,0.00019452,2]
[315398892,1709011841902,-671.81,0.00019452,2]
[315398893,1709011841912,-863.19,0.00019452,2]
[315398894,1709011841921,-550.60893937,0.00019452,2]
[315398895,1709011841930,-2918.88,0.00019452,2]
[315398896,1709011841939,-500.0,0.00019452,2]
[315398897,1709011841948,-500.0,0.00019452,2]
[315398898,1709011841958,-634.37,0.00019452,2]
[315398899,1709011841967,-500.0,0.00019452,2]
[315398900,1709011841976,-500.0,0.00019452,2]
[315398901,1709011841985,-500.0,0.00019452,2]
[315398902,1709011841995,-500.0,0.00019452,2]
[315398903,1709011842004,-1175.17,0.00019452,2]
[315398904,1709011842014,-500.0,0.00019452,2]
[315398905,1709011842023,-1038.01,0.00019452,2]
[315398906,1709011842032,-500.0,0.00019452,2]
[315398907,1709011842042,-714.19,0.00019452,2]
[315398908,1709011842051,-2154.72,0.00019452,2]
[315398909,1709011842060,-5492.71,0.00019452,2]
[315398910,1709011842069,-523.56834789,0.00019452,2]
[315398911,1709011842078,-14437.31,0.00019452,2]
[315398912,1709011842087,-728.64,0.00019452,2]
[315398913,1709011842096,-3152.85,0.00019452,2]
[315398914,1709011842105,-611.56698539,0.00019452,2]
[315398915,1709011842114,-500.0,0.00019452,2]
[315398916,1709011842124,-500.0,0.00019452,2]
[315398917,1709011842133,-500.0,0.00019452,2]
[315398918,1709011842142,-1602.19,0.00019452,2]
[315398919,1709011842151,-554.1,0.00019452,2]
[315398920,1709011842160,-1533.72,0.00019452,2]
[315398921,1709011842169,-500.0,0.00019452,2]
[315398922,1709011842179,-1942.6,0.00019452,2]
[315398923,1709011842189,-501.13635766,0.00019452,2]
[315398924,1709011842198,-502.85792086,0.00019452,2]
[315398925,1709011842207,-501.98121851,0.00019452,2]
[315398926,1709011842216,-3110.62,0.00019452,2]
[315398927,1709011842226,-500.0,0.00019452,2]
[315398928,1709011842235,-183.33184604,0.00019452,2]
[315398929,1709011842244,-2338.99,0.00019452,2]
[315398930,1709011842253,-500.0,0.00019452,2]
[315398931,1709011842262,-500.0,0.00019452,2]
[315398932,1709011842271,-503.60079056,0.00019452,2]
[315398933,1709011842280,-2367.76,0.00019452,2]
[315398934,1709011842290,-500.0,0.00019452,2]
[315398936,1709011842299,-542.77,0.00019452,2]
[315398937,1709011842308,-501.70867165,0.00019452,2]
[315398938,1709011842317,-500.0,0.00019452,2]
[315398939,1709011842326,-500.0,0.00019452,2]
[315398940,1709011842336,-1167.25,0.00019452,2]
[315398941,1709011842345,-1507.71,0.00019452,2]
[315398943,1709011842355,-153.0,0.000195,2]
[315398944,1709011842364,-153.0,0.000195,2]
[315398945,1709011842374,-166.666666,0.00019627,2]
[315398947,1709011842383,-1082.19335374,0.00019694,2]
[315398949,1709011842392,-500.0,0.00019724,2]
[315398951,1709011842402,-500.0,0.00019725,2]
[315398953,1709011842411,-550.41,0.00019725,2]
[315398955,1709011842421,-550.41,0.00019725,2]
[315398957,1709011842430,-550.41,0.00019725,2]
[315398959,1709011842439,-500.0,0.00019725,2]
[315398961,1709011842449,-500.0,0.00019725,2]
[315398963,1709011842458,-984.2,0.00019726,2]
[315398965,1709011842467,-500.0,0.00019726,2]
[315398968,1709011842476,-500.0,0.00019726,2]
[315398971,1709011842485,-235.52195681,0.00019726,2]
[315398974,1709011842494,-379.01528578,0.00019726,2]
[315398977,1709011842503,-500.0,0.00019726,2]
[315398979,1709011842513,-502.73428054,0.00019726,2]
[315398981,1709011842522,-379.90449438,0.00019726,2]
[315398984,1709011842532,-1139.6,0.00019726,2]
[315398987,1709011842542,-500.0,0.00019726,2]
[315398990,1709011842553,-500.0,0.00019726,2]
[315398993,1709011842562,-500.0,0.00019726,2]
[315398995,1709011842570,-500.0,0.00019726,2]
[315398996,1709011842579,-500.0,0.00019726,2]
[315398997,1709011842588,-500.0,0.00019726,2]
[315398998,1709011842598,-500.0,0.00019726,2]
[315398999,1709011842607,-500.0,0.00019726,2]
[315399000,1709011842616,-500.0,0.00019726,2]
[315399001,1709011842626,-500.0,0.00019726,2]
[315399002,1709011842635,-500.0,0.00019726,2]
[315399003,1709011842644,-500.0,0.00019726,2]
[315399004,1709011842653,-500.0,0.00019726,2]
[315399005,1709011842663,-500.0,0.00019726,2]
[315399006,1709011842672,-500.0,0.00019726,2]
[315399007,1709011842682,-167.66596435,0.00019726,2]
[315399008,1709011842691,-500.0,0.00019726,2]
[315399009,1709011842701,-500.0,0.00019726,2]
[315399010,1709011842710,-500.0,0.00019726,2]
[315399011,1709011842719,-500.0,0.00019726,2]
[315399012,1709011842728,-612.43,0.00019726,2]
[315399013,1709011842737,-500.0,0.00019726,2]
[315399014,1709011842746,-500.0,0.00019726,2]
[315399015,1709011842756,-500.0,0.00019726,2]
[315399016,1709011842765,-624.76811296,0.00019726,2]
[315399017,1709011842774,-1105.9,0.00019726,2]
[315399018,1709011842783,-615.27150898,0.00019726,2]
[315399019,1709011842793,-659.62,0.00019726,2]
[315399020,1709011842802,-500.0,0.00019726,2]
[315399021,1709011842811,-500.0,0.00019726,2]
[315399022,1709011842821,-500.0,0.00019726,2]
[315399023,1709011842830,-2750.49,0.00019726,2]
[315399024,1709011842839,-1120.73,0.00019726,2]
[315399025,1709011842848,-1778.14,0.00019726,2]
[315399026,1709011842857,-162.83762222,0.00019726,2]
[315399027,1709011842866,-500.0,0.00019726,2]
[315399028,1709011842876,-500.0,0.00019726,2]
[315399029,1709011842885,-490.0,0.00019726,2]
[315399030,1709011842894,-1589.52,0.00019726,2]
[315399031,1709011842903,-500.0,0.00019726,2]
[315399032,1709011842912,-566.07734059,0.00019726,2]
[315399033,1709011842921,-500.0,0.00019726,2]
[315399034,1709011842930,-500.0,0.00019726,2]
[315399035,1709011842939,-13854.33,0.00019726,2]
[315399036,1709011842949,-1369.18,0.00019726,2]
[315399037,1709011842959,-500.0,0.00019726,2]
[315399038,1709011842968,-573.44249112,0.00019726,2]
[315399039,1709011842977,-500.0,0.00019726,2]
[315399040,1709011842986,-500.0,0.00019726,2]
[315399041,1709011842994,-500.0,0.00019726,2]
[315399042,1709011843004,-588.85,0.00019726,2]
[315399043,1709011843014,-673.52,0.00019726,2]
[315399044,1709011843025,-500.0,0.00019726,2]
[315399045,1709011843034,-1102.6,0.00019726,2]
[315399046,1709011843044,-7587.69,0.00019726,2]
[315399047,1709011843053,-671.81,0.00019726,2]
[315399048,1709011843062,-863.19,0.00019726,2]
[315399049,1709011843071,-2918.88,0.00019726,2]
[315399050,1709011843080,-500.0,0.00019726,2]
[315399051,1709011843089,-634.37,0.00019726,2]
[315399052,1709011843098,-500.0,0.00019726,2]
[315399053,1709011843106,-500.0,0.00019726,2]
[315399054,1709011843115,-311.25723657,0.00019726,2]
[315399055,1709011843124,-1175.17,0.00019726,2]
[315399056,1709011843134,-500.0,0.00019726,2]
[315399057,1709011843145,-1038.01,0.00019726,2]
[315399058,1709011843154,-500.0,0.00019726,2]
[315399059,1709011843164,-714.19,0.00019726,2]
[315399060,1709011843173,-2154.72,0.00019726,2]
[315399061,1709011843183,-5492.71,0.00019726,2]
[315399062,1709011843192,-14437.31,0.00019726,2]
[315399063,1709011843281,-728.64,0.00019726,2]
[315399064,1709011843292,-3152.85,0.00019726,2]
[315399065,1709011843301,-500.0,0.00019726,2]
[315399066,1709011843312,-500.0,0.00019726,2]
[315399067,1709011843321,-1602.19,0.00019726,2]
[315399068,1709011843332,-554.1,0.00019726,2]
[315399069,1709011843344,-1533.72,0.00019726,2]
[315399070,1709011843353,-501.97109407,0.00019726,2]
[315399071,1709011843362,-1942.6,0.00019726,2]
[315399072,1709011843371,-3110.62,0.00019726,2]
[315399073,1709011843381,-508.39792088,0.00019726,2]
[315399074,1709011843390,-2338.99,0.00019726,2]
[315399075,1709011843399,-500.0,0.00019726,2]
[315399076,1709011843409,-500.0,0.00019726,2]
[315399077,1709011843420,-2367.76,0.00019726,2]
[315399078,1709011843430,-500.0,0.00019726,2]
[315399079,1709011843439,-542.77,0.00019726,2]
[315399080,1709011843448,-500.0,0.00019726,2]
[315399081,1709011843457,-500.0,0.00019726,2]
[315399082,1709011843466,-1167.25,0.00019726,2]
[315399083,1709011843475,-1507.71,0.00019726,2]
[315399084,1709011843484,-1823.09535832,0.000199,2]
[315399085,1709011843493,-500.0,0.00019998,2]
[315399086,1709011843503,-502.71268128,0.00019999,2]
[315399087,1709011843512,-550.41,0.00019999,2]
[315399088,1709011843521,-550.41,0.00019999,2]
[315399089,1709011843531,-550.41,0.00019999,2]
[315399090,1709011843540,-500.0,0.00019999,2]
[315399091,1709011843550,-500.0,0.00019999,2]
[315399092,1709011843560,-984.2,0.0002,2]
[315399093,1709011843570,-500.0,0.0002,2]
[315399094,1709011843579,-200.0,0.0002,2]
[315399095,1709011843588,-500.0,0.0002,2]
[315399096,1709011843598,-1139.6,0.0002,2]
[315399097,1709011843608,-551.28665408,0.0002,2]
[315399098,1709011843617,-500.0,0.0002,2]
[315399099,1709011843628,-500.0,0.0002,2]
[315399100,1709011843638,-500.0,0.0002,2]
[315399101,1709011843648,-500.0,0.0002,2]
[315399102,1709011843657,-503.7945733,0.0002,2]
[315399103,1709011843667,-500.0,0.0002,2]
[315399104,1709011843676,-500.0,0.0002,2]
[315399105,1709011843686,-500.0,0.0002,2]
[315399106,1709011843695,-500.0,0.0002,2]
[315399107,1709011843704,-500.0,0.0002,2]
[315399108,1709011843713,-500.0,0.0002,2]
[315399109,1709011843723,-256.63,0.0002,7]
[315399110,1709011843732,-177.39927478,0.0002,2]
[315399111,1709011843742,-151.69718814,0.0002,2]
[315399112,1709011843750,-500.0,0.0002,2]
[315399113,1709011843759,-547.67624046,0.0002,2]
[315399114,1709011843769,-612.43,0.0002,2]
[315399115,1709011843778,-158.76788744,0.0002,2]
[315399116,1709011843787,-500.0,0.0002,2]
[315399117,1709011843797,-500.0,0.0002,2]
[315399119,1709011843806,-1105.9,0.0002,2]
[315399121,1709011843816,-659.62,0.0002,2]
[315399123,1709011843825,-500.0,0.0002,2]
[315399124,1709011843834,-500.0,0.0002,2]
[315399125,1709011843843,-2750.49,0.0002,2]
[315399126,1709011843852,-1120.73,0.0002,2]
[315399127,1709011843862,-1778.14,0.0002,2]
[315399128,1709011843872,-500.0,0.0002,2]
[315399129,1709011843882,-500.0,0.0002,2]
[315399130,1709011843891,-1589.52,0.0002,2]
[315399131,1709011843900,-500.0,0.0002,2]
[315399132,1709011843909,-503.46406997,0.0002,2]
[315399134,1709011843918,-13854.33,0.0002,2]
[315399136,1709011843927,-1369.18,0.0002,2]
[315399137,1709011843936,-500.0,0.0002,2]
[315399138,1709011843945,-500.0,0.0002,2]
[315399139,1709011843954,-588.85,0.0002,2]
[315399140,1709011843963,-673.52,0.0002,2]
[315399141,1709011843972,-500.0,0.0002,2]
[315399142,1709011843981,-1102.6,0.0002,2]
[315399143,1709011843989,-7587.69,0.0002,2]
[315399144,1709011844000,-671.81,0.0002,2]
[315399145,1709011844010,-863.19,0.0002,2]
[315399146,1709011844020,-2918.88,0.0002,2]
[315399147,1709011844029,-634.37,0.0002,2]
[315399148,1709011844038,-500.0,0.0002,2]
[315399149,1709011844048,-615.15729319,0.0002,2]
[315399150,1709011844057,-1175.17,0.0002,2]
[315399151,1709011844068,-500.0,0.0002,2]
[315399153,1709011844077,-1038.01,0.0002,2]
[315399155,1709011844087,-500.0,0.0002,2]
[315399156,1709011844097,-714.19,0.0002,2]
[315399157,1709011844106,-2154.72,0.0002,2]
[315399158,1709011844116,-5492.71,0.0002,2]
[315399159,1709011844125,-14437.31,0.0002,2]
[315399160,1709011844137,-728.64,0.0002,2]
[315399161,1709011844146,-3152.85,0.0002,2]
[315399162,1709011844157,-500.0,0.0002,2]
[315399163,1709011844165,-500.0,0.0002,2]
[315399164,1709011844174,-1602.19,0.0002,2]
[315399165,1709011844184,-554.1,0.0002,2]
[315399166,1709011844193,-1533.72,0.0002,2]
[315399167,1709011844204,-1942.6,0.0002,2]
[315399168,1709011844213,-3110.62,0.0002,2]
[315399169,1709011844222,-2338.99,0.0002,2]
[315399170,1709011844233,-500.0,0.0002,2]
[315399171,1709011844244,-500.0,0.0002,2]
[315399172,1709011844254,-2367.76,0.0002,2]
[315399173,1709011844266,-500.0,0.0002,2]
[315399174,1709011844275,-542.77,0.0002,2]
[315399175,1709011844284,-500.0,0.0002,2]
[315399176,1709011844293,-500.0,0.0002,2]
[315399177,1709011844302,-1167.25,0.0002,2]
[315399178,1709011844310,-1507.71,0.0002,2]
[315399179,1709011844319,-1823.09535831,0.00020011,2]
[315399180,1709011844328,-1082.19335374,0.00020037,2]
[315399181,1709011844337,-153.0,0.00020055,2]
[315399182,1709011844346,-166.666666,0.00020076,2]
[315399183,1709011844356,-50000.0,0.00020103,5]
[315399184,1709011844364,-50000.0,0.00020104,5]
[315399185,1709011844373,-418.8771798,0.00020192,2]
[315399186,1709011844383,-153.0,0.00020192,2]
[315399187,1709011844392,-550.41,0.00020272,2]
[315399188,1709011844402,-550.41,0.00020272,2]
[315399189,1709011844413,-550.41,0.00020272,2]
[315399190,1709011844424,-418.81192967,0.00020272,2]
[315399191,1709011844434,-500.0,0.00020272,2]
[315399192,1709011844443,-152.95049413,0.00020272,2]
[315399193,1709011844453,-500.0,0.00020272,2]
[315399194,1709011844463,-984.2,0.00020273,2]
[315399195,1709011844473,-500.0,0.00020273,2]
[315399196,1709011844482,-500.0,0.00020273,2]
[315399197,1709011844491,-1139.6,0.00020273,2]
[315399198,1709011844500,-500.0,0.00020273,2]
[315399199,1709011844509,-500.0,0.00020273,2]
[315399200,1709011844518,-500.0,0.00020273,2]
[315399201,1709011844528,-500.0,0.00020273,2]
[315399202,1709011844538,-500.0,0.00020273,2]
[315399203,1709011844547,-500.0,0.00020273,2]
[315399204,1709011844558,-500.0,0.00020273,2]
[315399205,1709011844570,-612.43,0.00020273,2]
[315399206,1709011844580,-500.0,0.00020273,2]
[315399207,1709011844592,-500.0,0.00020273,2]
[315399208,1709011844602,-1105.9,0.00020273,2]
[315399209,1709011844611,-659.62,0.00020273,2]
[315399210,1709011844622,-500.0,0.00020273,2]
[315399211,1709011844631,-316.02608932,0.00020273,2]
[315399212,1709011844641,-2750.49,0.00020273,2]
[315399213,1709011844653,-1120.73,0.00020273,2]
[315399214,1709011844663,-1778.14,0.00020273,2]
[315399215,1709011844674,-500.0,0.00020273,2]
[315399216,1709011844683,-282.98479173,0.00020273,2]
[315399217,1709011844693,-1589.52,0.00020273,2]
[315399218,1709011844704,-500.0,0.00020273,2]
[315399219,1709011844713,-13854.33,0.00020273,2]
[315399220,1709011844723,-1369.18,0.00020273,2]
[315399221,1709011844732,-500.0,0.00020273,2]
[315399222,1709011844742,-588.85,0.00020273,2]
[315399223,1709011844754,-673.52,0.00020273,2]
[315399224,1709011844763,-500.0,0.00020273,2]
[315399225,1709011844774,-1102.6,0.00020273,2]
[315399226,1709011844783,-7587.69,0.00020273,2]
[315399227,1709011844792,-671.81,0.00020273,2]
[315399228,1709011844801,-863.19,0.00020273,2]
[315399229,1709011844811,-2918.88,0.00020273,2]
[315399230,1709011844820,-634.37,0.00020273,2]
[315399231,1709011844830,-1175.17,0.00020273,2]
[315399232,1709011844839,-500.0,0.00020273,2]
[315399233,1709011844848,-1038.01,0.00020273,2]
[315399234,1709011844858,-500.0,0.00020273,2]
[315399235,1709011844867,-714.19,0.00020273,2]
[315399236,1709011844876,-2154.72,0.00020273,2]
[315399237,1709011844884,-5492.71,0.00020273,2]
[315399238,1709011844894,-14437.31,0.00020273,2]
[315399239,1709011844903,-728.64,0.00020273,2]
[315399240,1709011844912,-3152.85,0.00020273,2]
[315399241,1709011844921,-500.0,0.00020273,2]
[315399242,1709011844930,-500.0,0.00020273,2]
[315399243,1709011844939,-1602.19,0.00020273,2]
[315399244,1709011844948,-554.1,0.00020273,2]
[315399245,1709011844956,-1533.72,0.00020273,2]
[315399246,1709011844965,-1942.6,0.00020273,2]
[315399247,1709011844975,-3110.62,0.00020273,2]
[315399248,1709011844983,-2338.99,0.00020273,2]
[315399249,1709011844992,-500.0,0.00020273,2]
[315399250,1709011845001,-500.0,0.00020273,2]
[315399251,1709011845011,-2367.76,0.00020273,2]
[315399252,1709011845020,-500.0,0.00020273,2]
[315399253,1709011845029,-542.77,0.00020273,2]
[315399254,1709011845038,-500.0,0.00020273,2]
[315399255,1709011845047,-500.0,0.00020273,2]
[315399256,1709011845057,-1167.25,0.00020273,2]
[315399257,1709011845067,-1507.71,0.00020273,2]
[315399258,1709011845076,-1213.56535489,0.00020328,2]
[315399259,1709011845086,-1082.19335374,0.00020379,2]
[315399260,1709011845095,-1000.0,0.00020463,2]
[315399261,1709011845104,-306.0,0.00020466,2]
[315399262,1709011845115,-550.41,0.0002052,2]
[315399263,1709011845126,-550.41,0.0002052,2]
[315399264,1709011845135,-166.666666,0.00020524,2]
[315399265,1709011845145,-194.26769162,0.00020545,2]
[315399266,1709011845155,-281.55953211,0.00020545,2]
[315399267,1709011845165,-155.42848835,0.00020545,2]
[315399268,1709011845175,-159.80558045,0.00020545,2]
[315399269,1709011845184,-550.41,0.00020546,2]
[315399270,1709011845193,-550.41,0.00020546,2]
[315399271,1709011845202,-550.41,0.00020546,2]
[315399272,1709011845211,-550.41,0.00020546,2]
[315399273,1709011845221,-550.42649597,0.00020546,2]
[315399274,1709011845230,-500.0,0.00020546,2]
[315399275,1709011845239,-500.0,0.00020546,2]
[315399276,1709011845248,-984.2,0.00020547,2]
[315399277,1709011845257,-545.81,0.00020547,2]
[315399278,1709011845266,-1139.6,0.00020547,2]
[315399279,1709011845275,-500.0,0.00020547,2]
[315399280,1709011845285,-500.0,0.00020547,2]
[315399281,1709011845294,-500.0,0.00020547,2]
[315399285,1709011845303,-500.0,0.00020547,2]
[315399287,1709011845392,-410.38269434,0.00020547,2]
[315399289,1709011845401,-9602.6665649,0.00020547,3]
[315399290,1709011845410,-6073.11175297,0.00020547,3]
[315399291,1709011845419,-6073.11175297,0.00020547,3]
[315399292,1709011845429,-6073.11175297,0.00020547,3]
[315399293,1709011845438,-6073.11175297,0.00020547,3]
[315399294,1709011845447,-6073.11175297,0.00020547,3]
[315399295,1709011845457,-6073.11175297,0.00020547,3]
[315399296,1709011845466,-6073.11175297,0.00020547,3]
[315399297,1709011845475,-6073.11175297,0.00020547,3]
[315399298,1709011845484,-6073.11175297,0.00020547,3]
[315399299,1709011845494,-6073.11075297,0.00020547,3]
[315399300,1709011845503,-500.0,0.00020547,2]
[315399301,1709011845512,-612.43,0.00020547,2]
[315399302,1709011845522,-500.0,0.00020547,2]
[315399303,1709011845532,-500.0,0.00020547,2]
[315399304,1709011845542,-1105.9,0.00020547,2]
[315399305,1709011845555,-659.62,0.00020547,2]
[315399306,1709011845565,-505.50069185,0.00020547,2]
[315399307,1709011845574,-2750.49,0.00020547,2]
[315399308,1709011845585,-1120.73,0.00020547,2]
[315399309,1709011845595,-1778.14,0.00020547,2]
[315399310,1709011845604,-410.31382454,0.00020547,2]
[315399311,1709011845614,-1589.52,0.00020547,2]
[315399312,1709011845623,-500.0,0.00020547,2]
[315399313,1709011845634,-13854.33,0.00020547,2]
[315399314,1709011845644,-1369.18,0.00020547,2]
[315399315,1709011845654,-588.85,0.00020547,2]
[315399316,1709011845664,-673.52,0.00020547,2]
[315399317,1709011845674,-500.0,0.00020547,2]
[315399318,1709011845683,-1102.6,0.00020547,2]
[315399319,1709011845693,-7587.69,0.00020547,2]
[315399320,1709011845703,-671.81,0.00020547,2]
[315399321,1709011845712,-863.19,0.00020547,2]
[315399322,1709011845723,-2918.88,0.00020547,2]
[315399323,1709011845733,-634.37,0.00020547,2]
[315399324,1709011845742,-1175.17,0.00020547,2]
[315399325,1709011845751,-181.51197123,0.00020547,2]
[315399326,1709011845760,-1038.01,0.00020547,2]
[315399327,1709011845769,-500.0,0.00020547,2]
[315399328,1709011845779,-714.19,0.00020547,2]
[315399329,1709011845788,-2154.72,0.00020547,2]
[315399330,1709011845797,-5492.71,0.00020547,2]
[315399331,1709011845806,-14437.31,0.00020547,2]
[315399332,1709011845816,-728.64,0.00020547,2]
[315399333,1709011845825,-3152.85,0.00020547,2]
[315399334,1709011845834,-500.0,0.00020547,2]
[315399335,1709011845843,-500.0,0.00020547,2]
[315399336,1709011845853,-1602.19,0.00020547,2]
[315399337,1709011845862,-554.1,0.00020547,2]
[315399338,1709011845873,-1533.72,0.00020547,2]
[315399339,1709011845883,-1942.6,0.00020547,2]
[315399340,1709011845892,-3110.62,0.00020547,2]
[315399341,1709011845901,-2338.99,0.00020547,2]
[315399342,1709011845910,-500.0,0.00020547,2]